[Event "*** Titled Tuesday Blitz"]
[Site "Chess.com"]
[Date "2018.08.07"]
[Round "6"]
[White "Titus369"]
[Black "KRASAVCHIK2002"]
[Result "1-0"]
[WhiteElo "2298"]
[BlackElo "2199"]
[TimeControl "180+2"]
[EndTime "14:20:23 PDT"]
[Termination "Titus369 won by resignation"]

1. e4 {[%clk 0:03:01.9]} 1... c5 {[%clk 0:03:00.1]} 2. Nf3 {[%clk 0:02:57.9]}
2... d6 {[%clk 0:03:01.1]} 3. d4 {[%clk 0:02:58.5]} 3... cxd4 {[%clk 0:03:02.4]}
4. Nxd4 {[%clk 0:03:00.4]} 4... Nf6 {[%clk 0:03:03.5]} 5. Nc3 {[%clk 0:03:01.4]}
5... a6 {[%clk 0:03:04.8]} 6. h3 {[%clk 0:03:01.6]} 6... e5 {[%clk 0:03:05.2]}
7. Nde2 {[%clk 0:03:02.5]} 7... h5 {[%clk 0:03:05.2]} 8. g3 {[%clk 0:03:02.6]}
8... Be6 {[%clk 0:03:01]} 9. Bg2 {[%clk 0:03:00.9]} 9... Be7 {[%clk 0:03:01.4]}
10. a4 {[%clk 0:03:01.6]} 10... h4 {[%clk 0:02:53.5]} 11. g4 {[%clk 0:03:00.3]}
11... Nfd7 {[%clk 0:02:48.8]} 12. O-O {[%clk 0:02:57]} 12... Nc6 {[%clk
0:02:41.2]} 13. Be3 {[%clk 0:02:44]} 13... Nf8 {[%clk 0:02:28.4]} 14. f4 {[%clk
0:02:34.1]} 14... Bc4 {[%clk 0:02:26.6]} 15. b3 {[%clk 0:02:27.7]} 15... Bxe2
{[%clk 0:02:27.3]} 16. Qxe2 {[%clk 0:02:29.6]} 16... Ne6 {[%clk 0:02:28.1]} 17.
Nd5 {[%clk 0:02:29]} 17... exf4 {[%clk 0:02:19]} 18. Nxf4 {[%clk 0:02:26.3]}
18... Nxf4 {[%clk 0:02:17.8]} 19. Rxf4 {[%clk 0:02:25.9]} 19... Bg5 {[%clk
0:02:10.3]} 20. Rff1 {[%clk 0:02:17.6]} 20... Bxe3+ {[%clk 0:02:10.9]} 21. Qxe3
{[%clk 0:02:19.5]} 21... O-O {[%clk 0:02:12]} 22. Rad1 {[%clk 0:02:17.6]} 22...
Qe7 {[%clk 0:02:07]} 23. Qf4 {[%clk 0:02:13.1]} 23... Qe5 {[%clk 0:01:04]} 24.
Rd5 {[%clk 0:02:06.8]} 24... Qxf4 {[%clk 0:00:54.9]} 25. Rxf4 {[%clk 0:02:08.7]}
25... Nb4 {[%clk 0:00:53.4]} 26. Rd2 {[%clk 0:01:56.1]} 26... Rac8 {[%clk
0:00:53.4]} 27. c4 {[%clk 0:01:56.6]} 27... b5 {[%clk 0:00:47.6]} 28. axb5
{[%clk 0:01:56.8]} 28... axb5 {[%clk 0:00:48.3]} 29. Bf1 {[%clk 0:01:58.3]}
29... bxc4 {[%clk 0:00:42.2]} 30. Bxc4 {[%clk 0:02:00.2]} 30... Nc6 {[%clk
0:00:33.9]} 31. Rxd6 {[%clk 0:01:30.4]} 31... Ne5 {[%clk 0:00:34.3]} 32. Rd4
{[%clk 0:01:31]} 32... Rfd8 {[%clk 0:00:31.5]} 33. Rxd8+ {[%clk 0:01:23.7]}
33... Rxd8 {[%clk 0:00:32.6]} 34. Bd5 {[%clk 0:01:25.2]} 34... g6 {[%clk
0:00:16.8]} 35. Rf2 {[%clk 0:01:08.8]} 35... Kg7 {[%clk 0:00:15.8]} 36. Rc2
{[%clk 0:01:04.6]} 36... f5 {[%clk 0:00:15.4]} 37. gxf5 {[%clk 0:00:47]} 37...
gxf5 {[%clk 0:00:15.8]} 38. b4 {[%clk 0:00:40.8]} 38... fxe4 {[%clk 0:00:12.3]}
39. Bxe4 {[%clk 0:00:42.7]} 39... Rd4 {[%clk 0:00:12.9]} 40. Rg2+ {[%clk
0:00:42.2]} 40... Kf6 {[%clk 0:00:12.3]} 41. Rf2+ {[%clk 0:00:43.3]} 41... Ke7
{[%clk 0:00:10.9]} 42. Rf4 {[%clk 0:00:35.7]} 42... Rxb4 {[%clk 0:00:09.8]} 43.
Kh2 {[%clk 0:00:36.1]} 43... Rb2+ {[%clk 0:00:08.1]} 44. Bg2 {[%clk 0:00:36.5]}
44... Ng6 {[%clk 0:00:06.3]} 45. Rg4 {[%clk 0:00:37.8]} 45... Kf6 {[%clk
0:00:07.4]} 46. Kg1 {[%clk 0:00:35.6]} 46... Rb1+ {[%clk 0:00:06.9]} 47. Kf2
{[%clk 0:00:36.1]} 47... Rb2+ {[%clk 0:00:08.3]} 48. Ke3 {[%clk 0:00:33.6]}
48... Rb3+ {[%clk 0:00:09.5]} 49. Kd2 {[%clk 0:00:32.9]} 49... Rb2+ {[%clk
0:00:08.8]} 50. Kc3 {[%clk 0:00:31.8]} 50... Rf2 {[%clk 0:00:09.3]} 51. Be4
{[%clk 0:00:30.4]} 51... Ne5 {[%clk 0:00:06.3]} 52. Rxh4 {[%clk 0:00:29.5]}
52... Kg5 {[%clk 0:00:07.4]} 53. Rh8 {[%clk 0:00:30]} 53... Rh2 {[%clk
0:00:05.9]} 54. Kd4 {[%clk 0:00:25.9]} 54... Nf7 {[%clk 0:00:06.7]} 55. Rg8+
{[%clk 0:00:17.4]} 55... Kf6 {[%clk 0:00:06.1]} 56. Rg3 {[%clk 0:00:17]} 56...
Ng5 {[%clk 0:00:06.2]} 57. Bg2 {[%clk 0:00:16]} 57... Nf7 {[%clk 0:00:04.6]} 58.
Ke3 {[%clk 0:00:14.7]} 58... Ne5 {[%clk 0:00:05.1]} 59. Kf2 {[%clk 0:00:15.2]}
59... Ng6 {[%clk 0:00:05.7]} 60. Kg1 {[%clk 0:00:15.7]} 60... Rxg2+ {[%clk
0:00:05.2]} 61. Kxg2 {[%clk 0:00:17.5]} 61... Nf4+ {[%clk 0:00:06.4]} 62. Kf3
{[%clk 0:00:15.3]} 62... Nh5 {[%clk 0:00:07.9]} 63. Rg8 {[%clk 0:00:15]} 63...
Ng7 {[%clk 0:00:07.3]} 64. Ra8 {[%clk 0:00:12.7]} 64... Kg6 {[%clk 0:00:08.6]}
65. Ra5 {[%clk 0:00:13.7]} 65... Kh7 {[%clk 0:00:09.7]} 66. Ra6 {[%clk
0:00:13.8]} 66... Nf5 {[%clk 0:00:10.5]} 67. Kf4 {[%clk 0:00:14.1]} 67... Nd4
{[%clk 0:00:11.4]} 68. h4 {[%clk 0:00:14.8]} 68... Ne2+ {[%clk 0:00:10.3]} 69.
Kg5 {[%clk 0:00:15.4]} 69... Ng3 {[%clk 0:00:11.9]} 70. Ra7+ {[%clk 0:00:15.8]}
70... Kg8 {[%clk 0:00:13.5]} 71. Re7 {[%clk 0:00:16.6]} 1-0

[Event "*** Titled Tuesday Blitz"]
[Site "Chess.com"]
[Date "2018.08.07"]
[Round "6"]
[White "platy3"]
[Black "Annawel"]
[Result "1-0"]
[WhiteElo "2752"]
[BlackElo "2787"]
[TimeControl "180+2"]
[EndTime "14:20:27 PDT"]
[Termination "platy3 won by checkmate"]

1. e4 {[%clk 0:03:00.9]} 1... c5 {[%clk 0:03:01.4]} 2. Nf3 {[%clk 0:03:01.8]}
2... d6 {[%clk 0:03:02.8]} 3. d4 {[%clk 0:03:03.1]} 3... cxd4 {[%clk 0:03:04.7]}
4. Nxd4 {[%clk 0:03:04.6]} 4... Nf6 {[%clk 0:03:06.3]} 5. Nc3 {[%clk 0:03:03.9]}
5... a6 {[%clk 0:03:07.8]} 6. Bg5 {[%clk 0:03:03.7]} 6... Nbd7 {[%clk
0:03:08.1]} 7. Qe2 {[%clk 0:03:03.5]} 7... h6 {[%clk 0:03:03.7]} 8. Bh4 {[%clk
0:03:04.7]} 8... Qc7 {[%clk 0:03:00.4]} 9. f4 {[%clk 0:03:02.9]} 9... g6 {[%clk
0:02:54.9]} 10. O-O-O {[%clk 0:03:02.9]} 10... Bg7 {[%clk 0:02:51.4]} 11. f5
{[%clk 0:02:57.6]} 11... g5 {[%clk 0:02:18.6]} 12. Bg3 {[%clk 0:02:58.3]} 12...
Ne5 {[%clk 0:02:17.1]} 13. h4 {[%clk 0:02:56.8]} 13... g4 {[%clk 0:02:16.2]} 14.
Nd5 {[%clk 0:01:59.2]} 14... Nxd5 {[%clk 0:02:12.3]} 15. exd5 {[%clk 0:02:01.1]}
15... Bd7 {[%clk 0:02:07.4]} 16. Kb1 {[%clk 0:01:57.8]} 16... h5 {[%clk
0:02:06.7]} 17. Qe4 {[%clk 0:01:49.8]} 17... O-O-O {[%clk 0:02:05.2]} 18. Nb3
{[%clk 0:01:41.3]} 18... Kb8 {[%clk 0:02:05.1]} 19. Bf2 {[%clk 0:01:41.1]} 19...
Rhe8 {[%clk 0:01:56.7]} 20. Rd2 {[%clk 0:01:28.4]} 20... e6 {[%clk 0:01:56.4]}
21. Qe3 {[%clk 0:01:21.3]} 21... exf5 {[%clk 0:01:51]} 22. Qa7+ {[%clk 0:01:21]}
22... Kc8 {[%clk 0:01:52.4]} 23. Bb6 {[%clk 0:01:10.7]} 23... Qb8 {[%clk
0:01:53.4]} 24. Qxb8+ {[%clk 0:01:11.4]} 24... Kxb8 {[%clk 0:01:55.3]} 25. Bxd8
{[%clk 0:01:12.3]} 25... Rxd8 {[%clk 0:01:56.8]} 26. Nd4 {[%clk 0:01:09.2]}
26... f4 {[%clk 0:01:57.7]} 27. Be2 {[%clk 0:01:07.1]} 27... Re8 {[%clk
0:01:57.6]} 28. Rf1 {[%clk 0:01:06]} 28... Ng6 {[%clk 0:01:55]} 29. c3 {[%clk
0:00:57.6]} 29... Bh6 {[%clk 0:01:49.9]} 30. Bd3 {[%clk 0:00:53]} 30... Nxh4
{[%clk 0:01:49.9]} 31. Rh1 {[%clk 0:00:50.5]} 31... f3 {[%clk 0:01:45.9]} 32.
Rdd1 {[%clk 0:00:43.4]} 32... Nxg2 {[%clk 0:01:29.6]} 33. Rxh5 {[%clk
0:00:44.4]} 33... Bg7 {[%clk 0:01:02.4]} 34. Rh7 {[%clk 0:00:40.4]} 34... Re1
{[%clk 0:00:48.8]} 35. Rxe1 {[%clk 0:00:32.1]} 35... Nxe1 {[%clk 0:00:50.7]} 36.
Rxg7 {[%clk 0:00:33.2]} 36... Nxd3 {[%clk 0:00:51.9]} 37. Rxf7 {[%clk
0:00:34.6]} 37... f2 {[%clk 0:00:52]} 38. Ne2 {[%clk 0:00:26.1]} 38... Be8
{[%clk 0:00:26.3]} 39. Rf8 {[%clk 0:00:24.3]} 39... Kc7 {[%clk 0:00:27.7]} 40.
Ng3 {[%clk 0:00:25.4]} 40... Bg6 {[%clk 0:00:29]} 41. Ka1 {[%clk 0:00:15.6]}
41... Kd7 {[%clk 0:00:30.4]} 42. Rf6 {[%clk 0:00:15.8]} 42... Be8 {[%clk
0:00:31.7]} 43. Kb1 {[%clk 0:00:13.8]} 43... Ke7 {[%clk 0:00:32.7]} 44. Re6+
{[%clk 0:00:15.3]} 44... Kd7 {[%clk 0:00:25.2]} 45. Kc2 {[%clk 0:00:15.8]} 45...
Nf4 {[%clk 0:00:18.7]} 46. Rf6 {[%clk 0:00:16.7]} 46... Nxd5 {[%clk 0:00:19]}
47. Rxf2 {[%clk 0:00:17.1]} 47... Bg6+ {[%clk 0:00:20.4]} 48. Kd2 {[%clk
0:00:17.9]} 48... Ke6 {[%clk 0:00:21.5]} 49. Ne2 {[%clk 0:00:19.1]} 49... Be4
{[%clk 0:00:21.5]} 50. Nf4+ {[%clk 0:00:11.1]} 50... Ke5 {[%clk 0:00:19.3]} 51.
Nxd5 {[%clk 0:00:11]} 51... Kxd5 {[%clk 0:00:21.2]} 52. Ke3 {[%clk 0:00:10.6]}
52... Bf3 {[%clk 0:00:22.4]} 53. Rd2+ {[%clk 0:00:10.3]} 53... Ke5 {[%clk
0:00:23.5]} 54. Rd4 {[%clk 0:00:07.4]} 54... Ke6 {[%clk 0:00:12.5]} 55. Rf4
{[%clk 0:00:08.1]} 55... Ke5 {[%clk 0:00:10.9]} 56. Rf7 {[%clk 0:00:07.4]} 56...
Bc6 {[%clk 0:00:10.5]} 57. Rg7 {[%clk 0:00:07.9]} 57... Kf5 {[%clk 0:00:12.1]}
58. b3 {[%clk 0:00:07]} 58... Bf3 {[%clk 0:00:13.1]} 59. c4 {[%clk 0:00:07.8]}
59... Kf6 {[%clk 0:00:14.7]} 60. Rh7 {[%clk 0:00:08.5]} 60... Ke5 {[%clk
0:00:15.8]} 61. Rh5+ {[%clk 0:00:09.2]} 61... Ke6 {[%clk 0:00:17]} 62. Kf4
{[%clk 0:00:08.6]} 62... Kd7 {[%clk 0:00:17.4]} 63. Rh6 {[%clk 0:00:08.8]} 63...
Kc6 {[%clk 0:00:18.1]} 64. Ke3 {[%clk 0:00:09.1]} 64... Kc5 {[%clk 0:00:18.7]}
65. Rg6 {[%clk 0:00:09.6]} 65... b6 {[%clk 0:00:09.4]} 66. a3 {[%clk 0:00:07.4]}
66... Kc6 {[%clk 0:00:09.9]} 67. Kd4 {[%clk 0:00:07.7]} 67... Bd1 {[%clk
0:00:08.2]} 68. b4 {[%clk 0:00:08.6]} 68... Kd7 {[%clk 0:00:04.8]} 69. a4 {[%clk
0:00:09.5]} 69... Bxa4 {[%clk 0:00:05.5]} 70. Rxg4 {[%clk 0:00:10.3]} 70... Bd1
{[%clk 0:00:06.6]} 71. Rg7+ {[%clk 0:00:11.2]} 71... Kc6 {[%clk 0:00:08.1]} 72.
Ra7 {[%clk 0:00:12.1]} 72... a5 {[%clk 0:00:04.2]} 73. b5# {[%clk 0:00:13]} 1-0

[Event "*** Titled Tuesday Blitz"]
[Site "Chess.com"]
[Date "2018.08.07"]
[Round "6"]
[White "Mikhail_Golubev"]
[Black "Arystanner23"]
[Result "1/2-1/2"]
[WhiteElo "2452"]
[BlackElo "2578"]
[TimeControl "180+2"]
[EndTime "14:20:32 PDT"]
[Termination "Game drawn by agreement"]

1. e4 {[%clk 0:03:01.9]} 1... e5 {[%clk 0:03:00.7]} 2. Nf3 {[%clk 0:03:01.6]}
2... Nc6 {[%clk 0:03:01.7]} 3. Bb5 {[%clk 0:03:01.7]} 3... a6 {[%clk 0:03:02.9]}
4. Ba4 {[%clk 0:03:02.3]} 4... Nf6 {[%clk 0:03:04]} 5. O-O {[%clk 0:03:02.5]}
5... Be7 {[%clk 0:03:05.2]} 6. d3 {[%clk 0:03:01.1]} 6... b5 {[%clk 0:03:05.8]}
7. Bb3 {[%clk 0:03:01.1]} 7... O-O {[%clk 0:03:06.7]} 8. a4 {[%clk 0:03:00.9]}
8... b4 {[%clk 0:03:07.5]} 9. Nbd2 {[%clk 0:03:00.2]} 9... d6 {[%clk 0:03:08.6]}
10. h3 {[%clk 0:02:58.1]} 10... Na5 {[%clk 0:03:09.1]} 11. Ba2 {[%clk
0:02:54.9]} 11... c5 {[%clk 0:03:09.4]} 12. Nc4 {[%clk 0:02:47.1]} 12... Nc6
{[%clk 0:03:05.7]} 13. c3 {[%clk 0:02:47.2]} 13... Rb8 {[%clk 0:03:06.5]} 14.
Re1 {[%clk 0:02:44.2]} 14... h6 {[%clk 0:03:04.2]} 15. Bd2 {[%clk 0:02:36.4]}
15... Be6 {[%clk 0:03:00.3]} 16. Qe2 {[%clk 0:02:29.2]} 16... Re8 {[%clk
0:02:56.6]} 17. Qd1 {[%clk 0:02:21.1]} 17... Bf8 {[%clk 0:02:55.6]} 18. a5
{[%clk 0:02:14.8]} 18... Qc7 {[%clk 0:02:52.9]} 19. Bb3 {[%clk 0:02:08.4]} 19...
d5 {[%clk 0:02:39.3]} 20. exd5 {[%clk 0:02:08.3]} 20... Bxd5 {[%clk 0:02:39.6]}
21. Ba4 {[%clk 0:01:50.2]} 21... bxc3 {[%clk 0:02:29]} 22. Bxc3 {[%clk
0:01:48.6]} 22... e4 {[%clk 0:02:12]} 23. Nfd2 {[%clk 0:01:21.1]} 23... exd3
{[%clk 0:02:05.8]} 24. Rxe8 {[%clk 0:01:18]} 24... Nxe8 {[%clk 0:02:03.2]} 25.
Qf1 {[%clk 0:01:17.3]} 25... Rd8 {[%clk 0:01:39.1]} 26. Re1 {[%clk 0:01:17.3]}
26... Nd6 {[%clk 0:01:34.1]} 27. Ne3 {[%clk 0:01:00.9]} 27... Be6 {[%clk
0:01:31.6]} 28. Bxc6 {[%clk 0:00:53.3]} 28... Qxc6 {[%clk 0:01:31.5]} 29. Qxd3
{[%clk 0:00:54.2]} 29... Qb5 {[%clk 0:01:20.9]} 30. Qc2 {[%clk 0:00:52.7]} 30...
Nb7 {[%clk 0:01:14.9]} 31. Ra1 {[%clk 0:00:48.7]} 31... Qd3 {[%clk 0:01:10.2]}
32. Qxd3 {[%clk 0:00:46.9]} 32... Rxd3 {[%clk 0:01:12.1]} 33. Ndc4 {[%clk
0:00:48]} 33... f5 {[%clk 0:01:08.9]} 34. g3 {[%clk 0:00:45.1]} 34... g5 {[%clk
0:01:09.2]} 35. Ne5 {[%clk 0:00:43.4]} 35... Rd8 {[%clk 0:00:54.5]} 36. Re1
{[%clk 0:00:43.6]} 36... Bg7 {[%clk 0:00:51.1]} 37. g4 {[%clk 0:00:39.2]} 37...
f4 {[%clk 0:00:50.9]} 38. Nf5 {[%clk 0:00:39.5]} 38... Bxf5 {[%clk 0:00:50.3]}
39. gxf5 {[%clk 0:00:40.1]} 39... Re8 {[%clk 0:00:48.1]} 40. Kf1 {[%clk
0:00:39.8]} 40... Nd6 {[%clk 0:00:47.6]} 41. Rd1 {[%clk 0:00:28.1]} 41... Nxf5
{[%clk 0:00:42.9]} 42. Rd5 {[%clk 0:00:25.4]} 42... Rc8 {[%clk 0:00:27.8]} 43.
Rd7 {[%clk 0:00:22.2]} 43... Nd4 {[%clk 0:00:21.7]} 44. Nc4 {[%clk 0:00:22.5]}
44... f3 {[%clk 0:00:20.6]} 45. Nd6 {[%clk 0:00:17.7]} 45... Rf8 {[%clk
0:00:21.4]} 46. Ke1 {[%clk 0:00:17]} 46... Rf4 {[%clk 0:00:21.7]} 47. Kd2 {[%clk
0:00:16.1]} 47... Rh4 {[%clk 0:00:22.3]} 48. Kd3 {[%clk 0:00:13.9]} 48... Rxh3
{[%clk 0:00:23.3]} 49. Ra7 {[%clk 0:00:10.5]} 49... Rh2 {[%clk 0:00:24.2]} 50.
Ne4 {[%clk 0:00:08.8]} 50... Rh1 {[%clk 0:00:19.3]} 51. Rxa6 {[%clk 0:00:08.6]}
51... Rd1+ {[%clk 0:00:19.9]} 52. Kc4 {[%clk 0:00:08.5]} 52... g4 {[%clk
0:00:18.6]} 53. Rg6 {[%clk 0:00:07.9]} 53... h5 {[%clk 0:00:17.9]} 54. Rg5
{[%clk 0:00:08]} 54... Kf7 {[%clk 0:00:16.7]} 55. Rxh5 {[%clk 0:00:07.8]} 55...
Ne6 {[%clk 0:00:17]} 56. Bxg7 {[%clk 0:00:03.7]} 56... Kxg7 {[%clk 0:00:17.1]}
57. Re5 {[%clk 0:00:04.1]} 57... Rd4+ {[%clk 0:00:15.8]} 58. Kb5 {[%clk
0:00:04]} 58... Rb4+ {[%clk 0:00:16.5]} 59. Kc6 {[%clk 0:00:03.1]} 59... Kf7
{[%clk 0:00:14.3]} 60. a6 {[%clk 0:00:04.2]} 60... Rxb2 {[%clk 0:00:14.8]} 61.
a7 {[%clk 0:00:04.4]} 61... Ra2 {[%clk 0:00:16.2]} 62. Ng5+ {[%clk 0:00:03.5]}
62... Nxg5 {[%clk 0:00:12.8]} 63. Rxg5 {[%clk 0:00:03.5]} 63... Rxa7 {[%clk
0:00:08.6]} 64. Rxg4 {[%clk 0:00:04.3]} 64... Ke6 {[%clk 0:00:07.3]} 1/2-1/2

[Event "*** Titled Tuesday Blitz"]
[Site "Chess.com"]
[Date "2018.08.07"]
[Round "6"]
[White "Martins-BR"]
[Black "francogreek"]
[Result "0-1"]
[WhiteElo "2319"]
[BlackElo "2414"]
[TimeControl "180+2"]
[EndTime "14:21:18 PDT"]
[Termination "francogreek won by resignation"]

1. e4 {[%clk 0:03:01.9]} 1... c5 {[%clk 0:03:00.1]} 2. Nf3 {[%clk 0:03:02.5]}
2... d6 {[%clk 0:03:00.4]} 3. d4 {[%clk 0:03:03.2]} 3... Nf6 {[%clk 0:03:01.7]}
4. Nc3 {[%clk 0:03:03.3]} 4... cxd4 {[%clk 0:03:03.1]} 5. Nxd4 {[%clk
0:03:04.8]} 5... g6 {[%clk 0:03:04.7]} 6. Be3 {[%clk 0:03:04.4]} 6... a6 {[%clk
0:03:06.2]} 7. f3 {[%clk 0:03:02.8]} 7... b5 {[%clk 0:03:03.3]} 8. Qd2 {[%clk
0:02:59.8]} 8... Bb7 {[%clk 0:03:04.5]} 9. O-O-O {[%clk 0:02:59.7]} 9... Nbd7
{[%clk 0:03:05.6]} 10. g4 {[%clk 0:02:58.1]} 10... h6 {[%clk 0:03:06.6]} 11. Kb1
{[%clk 0:02:54.4]} 11... e5 {[%clk 0:03:07.7]} 12. Nb3 {[%clk 0:02:52.7]} 12...
b4 {[%clk 0:03:08.8]} 13. Ne2 {[%clk 0:02:50.5]} 13... a5 {[%clk 0:03:09.9]} 14.
Nbc1 {[%clk 0:02:51.4]} 14... d5 {[%clk 0:03:04.5]} 15. exd5 {[%clk 0:02:42.1]}
15... Nxd5 {[%clk 0:03:06.4]} 16. Bf2 {[%clk 0:02:40.3]} 16... a4 {[%clk
0:03:07.7]} 17. Ng3 {[%clk 0:02:33.3]} 17... a3 {[%clk 0:03:07.9]} 18. Bc4
{[%clk 0:02:25.1]} 18... axb2 {[%clk 0:03:08.4]} 19. Bxd5 {[%clk 0:02:18.3]}
19... bxc1=Q+ {[%clk 0:03:05.1]} 20. Kxc1 {[%clk 0:02:18.9]} 20... Qa5 {[%clk
0:02:54.6]} 21. Bxf7+ {[%clk 0:01:43.9]} 21... Kxf7 {[%clk 0:02:56.5]} 22. Qxd7+
{[%clk 0:01:44.6]} 22... Be7 {[%clk 0:02:55.3]} 23. Qxb7 {[%clk 0:01:44.1]}
23... Qa3+ {[%clk 0:02:05.1]} 24. Kd2 {[%clk 0:01:37.8]} 24... Qc3+ {[%clk
0:02:05.9]} 25. Ke2 {[%clk 0:01:34.5]} 25... Qxc2+ {[%clk 0:02:03.7]} 26. Rd2
{[%clk 0:01:34.7]} 26... Qc4+ {[%clk 0:02:04.1]} 27. Ke1 {[%clk 0:01:28.5]}
27... Rxa2 {[%clk 0:01:51.8]} 28. Qd5+ {[%clk 0:01:07.3]} 28... Qxd5 {[%clk
0:01:52.2]} 29. Rxd5 {[%clk 0:01:09.2]} 29... b3 {[%clk 0:01:52.9]} 30. Kf1
{[%clk 0:00:57.6]} 30... Rc8 {[%clk 0:01:42.2]} 31. Rb5 {[%clk 0:00:52.9]} 31...
Rcc2 {[%clk 0:01:35.4]} 32. Ne4 {[%clk 0:00:52.7]} 32... b2 {[%clk 0:01:31.5]}
33. Kg2 {[%clk 0:00:45]} 33... Ra1 {[%clk 0:01:31.6]} 34. Rxb2 {[%clk
0:00:39.7]} 34... Rxb2 {[%clk 0:01:13.5]} 35. Rxa1 {[%clk 0:00:39.5]} 35... Rc2
{[%clk 0:01:09.4]} 36. Ra7 {[%clk 0:00:35]} 36... Ke6 {[%clk 0:01:10]} 37. Ra6+
{[%clk 0:00:35.4]} 37... Kf7 {[%clk 0:01:11.6]} 38. Kf1 {[%clk 0:00:28.1]} 38...
Rb2 {[%clk 0:01:11.6]} 39. h3 {[%clk 0:00:22.9]} 39... Rb3 {[%clk 0:01:11.4]}
40. Kg2 {[%clk 0:00:19.1]} 40... Rb2 {[%clk 0:01:12.6]} 41. Rb6 {[%clk 0:00:19]}
41... Ra2 {[%clk 0:01:12.9]} 42. Rb5 {[%clk 0:00:19.5]} 42... Ke6 {[%clk
0:01:13.2]} 43. Kg3 {[%clk 0:00:19.4]} 43... h5 {[%clk 0:01:09]} 44. Rb6+ {[%clk
0:00:17.1]} 44... Kf7 {[%clk 0:01:07.6]} 45. g5 {[%clk 0:00:18.3]} 45... Rc2
{[%clk 0:01:02.9]} 46. Rb5 {[%clk 0:00:18.3]} 46... Ke6 {[%clk 0:01:02.7]} 47.
h4 {[%clk 0:00:19.3]} 47... Ra2 {[%clk 0:00:58.7]} 48. Bc5 {[%clk 0:00:19]}
48... Bxc5 {[%clk 0:00:55.6]} 49. Rxc5 {[%clk 0:00:19.7]} 49... Ra1 {[%clk
0:00:33.1]} 50. Rc6+ {[%clk 0:00:20.3]} 50... Kf7 {[%clk 0:00:34.3]} 51. Rf6+
{[%clk 0:00:21.1]} 51... Kg7 {[%clk 0:00:36.2]} 52. Nc5 {[%clk 0:00:22.3]} 52...
Rg1+ {[%clk 0:00:35.8]} 53. Kh2 {[%clk 0:00:15.9]} 53... Rf1 {[%clk 0:00:32.1]}
54. Ne6+ {[%clk 0:00:16.7]} 54... Kh7 {[%clk 0:00:34]} 55. Nf8+ {[%clk
0:00:17.8]} 55... Kg7 {[%clk 0:00:33.9]} 56. Nxg6 {[%clk 0:00:18.2]} 56... e4
{[%clk 0:00:27]} 57. Ne5 {[%clk 0:00:19.1]} 57... e3 {[%clk 0:00:24.4]} 58. Rf7+
{[%clk 0:00:19.8]} 58... Kg8 {[%clk 0:00:23.5]} 59. g6 {[%clk 0:00:19.8]} 59...
e2 {[%clk 0:00:24.7]} 60. Nd7 {[%clk 0:00:20.9]} 60... Rxf3 {[%clk 0:00:18.7]}
61. Rxf3 {[%clk 0:00:20.3]} 61... e1=Q {[%clk 0:00:18.6]} 62. Rf7 {[%clk
0:00:18.3]} 62... Qxh4+ {[%clk 0:00:18.7]} 63. Kg2 {[%clk 0:00:19.1]} 63... Qg4+
{[%clk 0:00:20]} 64. Kf2 {[%clk 0:00:18.5]} 64... Qxg6 {[%clk 0:00:20.9]} 65.
Rf3 {[%clk 0:00:19.7]} 65... h4 {[%clk 0:00:18.2]} 66. Nf6+ {[%clk 0:00:20.4]}
66... Kg7 {[%clk 0:00:18.7]} 67. Nd5 {[%clk 0:00:18.9]} 67... Qc2+ {[%clk
0:00:19.1]} 68. Ke3 {[%clk 0:00:18.6]} 68... Kh6 {[%clk 0:00:17.1]} 69. Nf4
{[%clk 0:00:18.6]} 69... Kg5 {[%clk 0:00:15.7]} 70. Nh3+ {[%clk 0:00:19.7]}
70... Kg4 {[%clk 0:00:16.6]} 71. Nf2+ {[%clk 0:00:20.9]} 71... Kg5 {[%clk
0:00:16.9]} 72. Nh3+ {[%clk 0:00:22]} 72... Kh5 {[%clk 0:00:18.4]} 73. Nf2
{[%clk 0:00:22.8]} 73... Qc5+ {[%clk 0:00:18.4]} 74. Ke4 {[%clk 0:00:21.6]}
74... Qc6+ {[%clk 0:00:19.5]} 75. Ke3 {[%clk 0:00:22.5]} 75... Qe6+ {[%clk
0:00:20.7]} 76. Kd3 {[%clk 0:00:22.7]} 76... Qe5 {[%clk 0:00:19.4]} 77. Re3
{[%clk 0:00:22.1]} 77... Qd5+ {[%clk 0:00:18]} 78. Ke2 {[%clk 0:00:23]} 78...
Kg5 {[%clk 0:00:19.1]} 79. Nh3+ {[%clk 0:00:23.2]} 79... Kg4 {[%clk 0:00:20.3]}
80. Nf2+ {[%clk 0:00:24.2]} 80... Kf4 {[%clk 0:00:21.9]} 81. Nh3+ {[%clk
0:00:24.8]} 81... Kg4 {[%clk 0:00:23.5]} 82. Nf2+ {[%clk 0:00:25.9]} 82... Kf5
{[%clk 0:00:25]} 83. Nh3 {[%clk 0:00:26.4]} 83... Qg2+ {[%clk 0:00:25.5]} 84.
Kd3 {[%clk 0:00:26.4]} 84... Kg4 {[%clk 0:00:24.6]} 0-1